Cogmind - Beta 9.5 @@@ ROGUE MODE // 2020.04.12 @ 14:31:21 Player: 3.14 Result: Assimilated 0b10! Performance ------------- Evolutions (9) 4500 Regions Visited (27) 5400 Robots Destroyed (212) 1060 Value Destroyed (14288) 14288 Prototype IDs (15) 300 Alien Tech Used (0) 0 Bonus (23737) 23737 TOTAL SCORE: 49285 Bonus ------- High Alert Combat Kills 1082 Follower Combat Kills 7080 Entered Garrisons 2200 Used RIF Installer 5500 Met MAIN.C 5000 Used 0b10 Conduit 2000 Win 3000 Friendly Fire -2125 Cogmind --------- Core Integrity 304/1600 Matter 216/300 Energy 98/100 System Corruption 14% Temperature Cool (0) Movement Core (50) Location 0b10 Command Parts ------- > --- POWER (1) -------- (None) > --- PROPULSION (2) --- (None) > --- UTILITY (20) ----- Relay Coupler [Swarmer] (41) Relay Coupler [Demolisher] (25) > --- WEAPON (2) ------- (None) > --- INVENTORY (4) ---- (None) Peak State ------------ > --- POWER ------------ Light Particle Reactor > --- PROPULSION ------- Biometal Heavy Treads > --- UTILITY ---------- High-capacity Storage Unit High-capacity Storage Unit High-capacity Storage Unit High-capacity Storage Unit Hardened Medium Armor Plating Hardened Medium Armor Plating Relay Coupler [ARC] Relay Coupler [Swarmer] Relay Coupler [Swarmer] Relay Coupler [Swarmer] Relay Coupler [Grunt] Relay Coupler [Grunt] Relay Coupler [Grunt] Relay Coupler [Duelist] Relay Coupler [Sentry] Relay Coupler [Sentry] Relay Coupler [Sentry] Relay Coupler [Sentry] Relay Coupler [Demolisher] Relay Coupler [Behemoth] > --- WEAPON ----------- Gamma Rifle Nanosword > --- INVENTORY -------- Particle Reactor Light Particle Reactor Light Particle Reactor Light Quantum Reactor Advanced Heavy Treads Biometal Heavy Treads High-capacity Matter Pod Advanced Hacking Suite Relay Coupler [NC] Relay Coupler [Swarmer] Relay Coupler [Brawler] Relay Coupler [Brawler] Relay Coupler [Demolisher] Relay Coupler [Specialist] Relay Coupler [Specialist] System Restoration Module Precision Shock Rifle Gamma Rifle KE Penetrator KE Penetrator KE Penetrator KE Penetrator Railgun Rocket Array Advanced Remote Datajack Advanced Remote Datajack Advanced Remote Datajack Force Lance Force Lance Force Lance [Rating: 127] Favorites ----------- Power Improved Deuterium Engine Engine Improved Deuterium Engine Power Core Light Nuclear Core Reactor Light Quantum Reactor Propulsion Light Treads Treads Light Treads Leg Myomer Leg Wheel Centrium Wheel Flight Unit Xenon Bombardment Thruster Utility High-capacity Storage Unit Device System Backup Module Storage High-capacity Storage Unit Processor Core Analyzer Hackware Relay Coupler [Sentry] Protection Improved Medium Armor Plating Weapon Gauss Rifle Energy Gun Lightning Gun Energy Cannon Cooled Particle Cannon Ballistic Gun Gauss Rifle Launcher Mini Grenade Launcher Special Weapon Advanced Remote Datajack Slashing Weapon Nanosword Piercing Weapon Force Lance Build | -11 -10 -9 -9 -8 -8 -8 -8 -7 -7 -7 -7 -6 -6 -5 -5 -4 -4 -3 -3 -3 -3 -2 -2 -2 -2 -1 -1 ------- Run | Scr Mat Mat Min Mat Gar Mat Gar Fac Gar Fac Gar Fac Gar Fac Gar Fac Gar Res Gar Res Gar Res Gar Res Gar Acc Com Slots Evolved 18 | . . 2 . 2 . . . 2 . . . 2 . 2 . 2 . 2 . . . 2 . . . 2 . Power . | . . . . . . . . . . . . . . . . . . . . . . . . . . . . Propulsion . | . . . . . . . . . . . . . . . . . . . . . . . . . . . . Utility 18 | . . 2 . 2 . . . 2 . . . 2 . 2 . 2 . 2 . . . 2 . . . 2 . Weapon . | . . . . . . . . . . . . . . . . . . . . . . . . . . . . Parts Attached 412 | 7 4 3 . 5 8 13 20 48 24 29 21 8 5 35 17 6 18 3 13 14 26 5 22 6 10 29 13 Power 23 | 1 . . . . 1 1 2 3 1 1 1 . . 2 1 . 1 1 . 1 1 1 . . 1 2 1 Engine 8 | 1 . . . . . . 2 1 1 1 . . . 1 1 . . . . . . . . . . . . Core 6 | . . . . . 1 1 . 2 . . 1 . . 1 . . . . . . . . . . . . . Reactor 9 | . . . . . . . . . . . . . . . . . 1 1 . 1 1 1 . . 1 2 1 Propulsion 58 | 2 . . . 2 2 3 3 7 4 2 3 1 1 7 3 . 3 . 1 1 6 1 1 . . 2 3 Treads 45 | 2 . . . 2 . 3 3 7 4 2 3 1 1 5 3 . 1 . 1 1 . . 1 . . 2 3 Leg 9 | . . . . . 2 . . . . . . . . 2 . . . . . . 4 1 . . . . . Wheel 2 | . . . . . . . . . . . . . . . . . 2 . . . . . . . . . . Hover . | . . . . . . . . . . . . . . . . . . . . . . . . . . . . Flight 2 | . . . . . . . . . . . . . . . . . . . . . 2 . . . . . . Utility 164 | 2 1 1 . 3 . 6 4 21 8 11 8 4 2 9 7 4 11 2 7 1 13 3 9 1 7 16 3 Device 18 | . . 1 . . . . 2 7 3 . 2 . . 1 2 . . . . . . . . . . . . Storage 19 | 2 1 . . . . 3 . 1 . 6 . . . 1 . . . . . . . . 1 . . 4 . Processor 5 | . . . . . . 1 . 3 . . 1 . . . . . . . . . . . . . . . . Hackware 80 | . . . . . . . . 2 3 3 3 4 2 4 3 3 10 1 6 1 10 3 5 1 5 8 3 Protection 42 | . . . . 3 . 2 2 8 2 2 2 . . 3 2 1 1 1 1 . 3 . 3 . 2 4 . Artifact . | . . . . . . . . . . . . . . . . . . . . . . . . . . . . Weapon 167 | 2 3 2 . . 5 3 11 17 11 15 9 3 2 17 6 2 3 . 5 11 6 . 12 5 2 9 6 Energy Gun 18 | 2 2 . . . . . . 3 2 . 1 . . . . . . . . 4 . . . . . 2 2 Energy Cannon 5 | . . . . . . . . 2 1 . . . . 1 1 . . . . . . . . . . . . Ballistic Gun 76 | . 1 2 . . 4 3 7 8 5 8 5 2 2 7 2 . 2 . 1 3 3 . 6 3 . 2 . Ballistic Cannon . | . . . . . . . . . . . . . . . . . . . . . . . . . . . . Launcher 20 | . . . . . 1 . 4 1 3 3 2 . . 2 1 . . . 1 . . . 2 . . . . Special Weapon 34 | . . . . . . . . 3 . 4 1 1 . 7 1 1 1 . 2 3 2 . 2 2 . 3 1 Impact Weapon . | . . . . . . . . . . . . . . . . . . . . . . . . . . . . Slashing Weapon 12 | . . . . . . . . . . . . . . . 1 1 . . 1 1 1 . 2 . 2 2 1 Piercing Weapon 2 | . . . . . . . . . . . . . . . . . . . . . . . . . . . 2 Special Melee Weapon . | . . . . . . . . . . . . . . . . . . . . . . . . . . . . Unidentified Prototypes 3 | . . . . . . . . 2 . . . . . . . . . . . 1 . . . . . . . Parts Lost 79 | . 1 . . 3 4 2 7 1 2 7 7 3 1 6 4 . . . 2 1 8 . 2 . 3 7 8 Power 9 | . . . . . 1 1 2 1 . 1 . . . 1 . . . . . . 1 . . . 1 . . Propulsion 16 | . . . . 2 1 . 1 . . 1 2 1 . 2 . . . . . 1 2 . . . . . 3 Utility 40 | . . . . 1 2 . 3 . 2 3 4 1 1 1 3 . . . 1 . 5 . 1 . 1 7 4 Weapon 14 | . 1 . . . . 1 1 . . 2 1 1 . 2 1 . . . 1 . . . 1 . 1 . 1 Highest Loss Streak 8 | . 1 . . 3 2 1 4 1 1 3 5 2 1 6 3 . . . 1 1 8 . 1 . 3 3 3 Average Slot Usage (%) 96 | . 99 88 88 85 77 89 97 99 98 97 99 99 94 98 97 98 99 100 98 99 94 99 92 95 94 95 59 Engine 2 | . 14 11 11 9 4 . 7 2 2 6 6 . . . 2 5 2 . . . . . . . . . . Core 1 | . . . . . 4 9 1 4 4 . . 6 6 4 2 . . . . . . . . . . . . Reactor 1 | . . . . . . . . . . . . . . . . . 2 4 4 4 3 4 4 4 3 4 2 Treads 10 | . 28 22 22 18 11 15 18 15 15 15 14 12 13 10 11 10 5 4 4 3 . . 3 4 4 4 3 Device 2 | . . 11 11 9 5 . 6 4 5 6 5 . . . 6 . . . . . . . . . . . . Storage 19 | . 28 22 22 18 18 22 27 23 23 22 23 20 20 17 17 15 15 14 14 14 14 13 13 17 17 16 8 Processor 4 | . . . . . . 5 9 20 17 . 5 6 6 1 . . . . . . . . . . . . . Hackware 31 | . . . . . . . . 3 8 26 18 32 33 40 37 45 53 57 55 61 53 61 55 56 55 62 34 Protection 5 | . . . . 13 11 15 9 8 3 2 6 6 1 7 4 10 2 4 4 . 3 2 5 4 3 1 4 Ballistic Gun 7 | . 7 5 22 18 17 18 17 10 5 13 11 12 9 7 5 2 2 4 . 1 1 . 3 5 . 1 . Special Weapon 1 | . . . . . . . . . . . 2 . 3 2 1 3 4 4 2 3 3 4 3 2 4 3 1 Naked Turns . | . . . . . . . . . . . . . . . . . . . . . . . . . . . . Heaviest Build 169 | 16 21 24 24 33 30 58 58 78 71 119 120 111 110 120 132 134 135 130 139 125 125 125 145 146 145 169 169 Greatest Support 75 | 40 40 40 40 40 40 44 42 50 46 43 46 43 43 60 60 60 60 16 30 30 50 53 60 60 60 75 75 Greatest Overweight (x) 40 | . . . . 1 2 1 1 1 2 2 2 2 2 2 2 2 8 8 8 40 37 2 2 2 2 2 2 Average Overweight (x) 2 | . . . . . . . 1 1 1 1 2 2 2 1 1 2 6 7 7 7 3 2 2 2 2 2 . Largest Inventory Capacity 36 | 8 10 10 10 10 10 20 20 20 20 28 28 28 28 28 28 28 28 28 28 28 28 28 34 34 34 36 36 Average Capacity 25 | 5 8 10 10 10 10 15 20 20 20 23 28 28 28 28 28 28 28 28 28 28 28 28 28 34 34 34 21 Most Carried 35 | 4 9 10 10 10 10 17 20 20 20 21 28 28 28 28 28 28 28 28 28 28 28 28 31 31 34 35 33 Average Carried 22 | 2 6 7 10 9 9 11 18 19 19 18 19 26 27 26 26 25 26 26 27 27 26 27 27 30 31 32 18 Final Capacity 36 | 8 10 10 10 10 10 20 20 20 20 28 28 28 28 28 28 28 28 28 28 28 28 28 34 34 34 36 4 Final Carried 34 | 4 8 10 10 9 10 15 20 20 20 15 28 24 28 25 28 27 28 28 28 26 28 28 31 31 34 28 . Class Distribution -------------------- 54% | Botlord-Mutant 17% | Bothacker-Mutant 14% | Hauler-Mutant 7% | Scavenger-Mutant 5% | Mutant Dominant Class ---------------- Mutant | -10/Materials Mutant | -9/Materials Mutant | -9/Mines Mutant | -8/Materials Scavenger-Mutant | -8/Garrison Scavenger-Mutant | -8/Materials Scavenger-Mutant | -8/Garrison Bothacker-Mutant | -7/Factory Hauler-Mutant | -7/Garrison Bothacker-Mutant | -7/Factory Bothacker-Mutant | -7/Garrison Botlord-Mutant | -6/Factory Botlord-Mutant | -6/Garrison Botlord-Mutant | -5/Factory Botlord-Mutant | -5/Garrison Botlord-Mutant | -4/Factory Botlord-Mutant | -4/Garrison Botlord-Mutant | -3/Research Botlord-Mutant | -3/Garrison Botlord-Mutant | -3/Research Botlord-Mutant | -3/Garrison Botlord-Mutant | -2/Research Botlord-Mutant | -2/Garrison Botlord-Mutant | -2/Research Botlord-Mutant | -2/Garrison Botlord-Mutant | -1/Access Mutant | -1/Command Resources | -11 -10 -9 -9 -8 -8 -8 -8 -7 -7 -7 -7 -6 -6 -5 -5 -4 -4 -3 -3 -3 -3 -2 -2 -2 -2 -1 -1 ----------- Run | Scr Mat Mat Min Mat Gar Mat Gar Fac Gar Fac Gar Fac Gar Fac Gar Fac Gar Res Gar Res Gar Res Gar Res Gar Acc Com Matter Collected 10017 | 270 182 . . 196 192 382 507 1074 778 643 708 385 385 556 335 82 340 86 283 350 519 150 631 272 235 370 106 Remotely . | . . . . . . . . . . . . . . . . . . . . . . . . . . . . Salvage Created 9283 | 85 326 . . 292 273 474 680 1048 882 995 544 495 24 403 674 90 . . 125 196 80 102 436 353 204 407 95 Parts 455 | 2 21 . . 21 25 19 52 46 53 45 30 20 3 21 21 . . . 6 8 2 5 7 17 10 16 5 Haulers Intercepted 5 | . 2 . . . . 1 . 2 . . . . . . . . . . . . . . . . . . . Recyclers Shooed 5 | . . . . . . . . 1 . 4 . . . . . . . . . . . . . . . . . Parts Field Recycled . | . . . . . . . . . . . . . . . . . . . . . . . . . . . . Retrieved Matter . | . . . . . . . . . . . . . . . . . . . . . . . . . . . . Parts Self-Destructed . | . . . . . . . . . . . . . . . . . . . . . . . . . . . . Prevented . | . . . . . . . . . . . . . . . . . . . . . . . . . . . . Kills | -11 -10 -9 -9 -8 -8 -8 -8 -7 -7 -7 -7 -6 -6 -5 -5 -4 -4 -3 -3 -3 -3 -2 -2 -2 -2 -1 -1 ------- Run | Scr Mat Mat Min Mat Gar Mat Gar Fac Gar Fac Gar Fac Gar Fac Gar Fac Gar Res Gar Res Gar Res Gar Res Gar Acc Com Combat Hostiles Destroyed 179 | . 5 . . 8 16 6 23 15 24 16 15 8 1 6 11 1 . . 1 3 1 . 8 3 2 5 1 Melee 7 | . . . . 1 . . . . . . . . . . 1 . . . . . . . . . 2 3 . Guns 107 | . 5 . . 7 8 6 11 12 14 10 10 8 1 3 4 1 . . . 2 1 . . 3 . 1 . Cannons 7 | . . . . . . . . 2 2 . . . . . 3 . . . . . . . . . . . . AOE 53 | . . . . . 8 . 12 . 8 6 5 . . 3 3 . . . . . . . 8 . . . . Classes Destroyed 19 | 1 4 . . 4 . 2 . 1 2 1 1 . . 2 . . . . . . . . . 1 . . . Worker 6 | . . . . . . 1 . 3 . 2 . . . . . . . . . . . . . . . . . Builder 2 | . . . . . . . . . . 1 . . . 1 . . . . . . . . . . . . . Tunneler 1 | . . . . . . . . . . . . . . 1 . . . . . . . . . . . . . Hauler 5 | . 2 . . . . 1 . 2 . . . . . . . . . . . . . . . . . . . Recycler 11 | 1 . . . . . 1 . 1 . 4 . 2 . 1 . . . . . . . 1 . . . . . Mechanic 1 | . 1 . . . . . . . . . . . . . . . . . . . . . . . . . . Operator 1 | . 1 . . . . . . . . . . . . . . . . . . . . . . . . . . Watcher 1 | . . . . . . . . . . . . . . . . . . . . . . . . 1 . . . Swarmer 56 | . . . . 3 12 . 7 . 11 2 6 8 1 1 . . . . 1 . 1 . . . 1 2 . Grunt 71 | . 5 . . 2 3 2 9 7 7 8 4 . . 4 8 . . . . 1 . . 8 2 1 . . Brawler 5 | . . . . 1 . . . . . 1 2 . . . 1 . . . . . . . . . . . . Duelist 5 | . . . . 1 . . 1 1 . 1 . . . . 1 . . . . . . . . . . . . Protector 2 | . . . . . . . . . 1 1 . . . . . . . . . . . . . . . . . Sentry 15 | . . . . . . 2 5 1 3 . 1 . . . . 1 . . . . . . . 1 1 . . Demolisher 1 | . . . . . . . . . 1 . . . . . . . . . . . . . . . . . . Specialist 1 | . . . . . . . . . . . 1 . . . . . . . . . . . . . . . . Hunter 14 | . . . . 1 1 2 1 1 1 . . . . . 2 . . . 1 1 . . . . . 2 1 Programmer 11 | . . . . . . . . 5 . 3 1 . . . . . . . . 1 . . . . . 1 . Behemoth 3 | . . . . . . . . . . . . . . 1 . . . . . . 1 . . . . 1 . Best Kill Streak 11 | 1 3 . . 3 9 3 9 3 11 7 4 5 1 6 3 1 . . 1 2 1 1 8 3 1 2 1 Combat Bots Only 11 | . 3 . . 3 9 3 9 3 11 5 4 4 1 4 3 1 . . 1 2 1 . 8 3 1 2 1 Max Kills in Single Turn 5 | 1 1 . . 1 5 1 3 1 3 3 2 1 1 3 2 1 . . 1 1 1 1 2 1 1 1 1 Gunslinging 1 | . . . . . . . 1 . 1 . . . . . . . . . . . . . . . . . . Exploded 5 | . . . . . 5 . 3 . 3 3 2 . . 1 2 . . . . . . . 2 . . . . Melee 1 | . . . . 1 . . . . . . . . . . 1 . . . . . . . . . 1 1 . Uniques/NPCs Destroyed . | . . . . . . . . . . . . . . . . . . . . . . . . . . . . Combat | -11 -10 -9 -9 -8 -8 -8 -8 -7 -7 -7 -7 -6 -6 -5 -5 -4 -4 -3 -3 -3 -3 -2 -2 -2 -2 -1 -1 -------- Run | Scr Mat Mat Min Mat Gar Mat Gar Fac Gar Fac Gar Fac Gar Fac Gar Fac Gar Res Gar Res Gar Res Gar Res Gar Acc Com Damage Taken 23638 | . 224 . . 891 673 652 1298 1474 1411 1003 1562 677 41 1479 981 105 329 106 545 342 1201 181 1057 641 772 2461 3532 Core 3640 | . 39 . . 53 44 50 288 189 157 123 216 138 13 223 164 20 15 . 31 . 246 . 176 95 64 177 1119 Absorbed by Shields 350 | . . . . . . . . . 14 59 . 42 . . 31 . 38 . 34 . 20 . 55 . 57 . . Reduced by Siege Mode 105 | . . . . . . . . . . . . . . . . . . . . . . . . . . 105 . Core Remaining (%) 65 | 100 84 . 100 . . . 20 . . . 2 . 82 . 61 . 96 . . . 78 . . . 76 . 19 Volleys Fired 756 | 1 31 5 . 27 19 38 45 67 46 66 56 37 8 36 34 7 30 . 28 32 29 10 39 24 14 20 7 Largest 2 | 2 2 2 . 2 2 2 2 2 2 2 2 2 2 2 2 1 2 . 1 2 2 1 2 2 1 2 2 Hottest 150 | 90 90 90 . 46 46 51 51 110 110 56 80 48 46 63 63 40 61 . 40 130 66 50 65 60 50 150 150 Shots Fired 1199 | 2 61 10 . 54 35 75 77 125 84 105 102 70 11 46 60 7 32 . 28 40 34 10 40 38 14 28 11 Gun 881 | 2 61 10 . 54 32 75 64 111 66 86 93 66 9 17 38 3 6 . . 22 11 . 3 28 . 16 8 Cannon 45 | . . . . . . . . 10 13 . . . . 3 19 . . . . . . . . . . . . Launcher 64 | . . . . . 3 . 13 . 5 8 7 . . 4 2 . . . 8 . . . 14 . . . . Special 209 | . . . . . . . . 4 . 11 2 4 2 22 1 4 26 . 20 18 23 10 23 10 14 12 3 Kinetic 787 | . 26 . . 54 32 75 64 101 62 86 88 66 9 17 38 3 6 . . 12 11 . 3 28 . 6 . Thermal 83 | 2 31 5 . . . . . 10 13 . . . . 3 19 . . . . . . . . . . . . Explosive 54 | . . . . . 3 . 13 . 5 8 7 . . 4 2 . . . . . . . 12 . . . . Electromagnetic 66 | . 4 5 . . . . . 10 4 . 5 . . . . . . . 8 10 . . 2 . . 10 8 Robot Hit Streak 38 | 2 12 11 . 12 12 13 11 38 23 14 16 13 7 7 10 7 13 . 18 11 7 3 5 7 8 5 4 Robot Miss Streak 9 | . 2 2 . 3 2 2 2 2 6 9 2 4 1 4 2 1 3 . 2 3 2 1 2 5 2 2 1 Penetration Max 2 | . . . . . . . 1 1 . . . . . . 1 . . . . . 1 . . 2 . . . Secondary Targets 11 | . . . . 3 3 1 1 . 1 . 2 . . . . . . . . . . . . . . . . Max Gunslinging Chain 1 | . . . . 1 1 1 1 . 1 . 1 . . . . . . . . . . . . . . . . Shots Hit Robots 895 | 2 48 7 . 39 23 52 55 101 65 83 73 46 4 27 42 7 23 . 18 28 24 8 27 23 17 43 10 Core Hits 487 | 2 18 1 . 12 22 21 36 44 77 74 35 21 2 19 26 1 . . 9 4 5 1 27 11 3 13 3 Critical Hits 23 | . . . . 1 . 1 2 4 3 . 3 1 . 2 3 1 . . . . . . . 1 1 . . Critical Kills 8 | . . . . . . 1 1 1 1 . . 1 . 1 . . . . . . . . . 1 1 . . Critical Parts Destroyed 13 | . . . . 1 . . 1 2 2 . 3 . . . 3 1 . . . . . . . . . . . Melee Attacks 78 | . . . . . . . . . . . . . . . 2 6 1 . 4 4 5 1 2 . 13 32 8 Impact . | . . . . . . . . . . . . . . . . . . . . . . . . . . . . Slashing 77 | . . . . . . . . . . . . . . . 2 6 1 . 4 4 5 1 2 . 13 32 7 Piercing 1 | . . . . . . . . . . . . . . . . . . . . . . . . . . . 1 Sneak Attacks 10 | . . . . . . . . . . . . . . . 2 1 . . . . . 1 . . 2 4 . Combat Hostiles 2 | . . . . . . . . . . . . . . . . . . . . . . . . . 1 1 . Follow-up Attacks . | . . . . . . . . . . . . . . . . . . . . . . . . . . . . Damage Inflicted 22887 | 22 562 87 . 574 720 710 2225 2201 1952 2165 1921 621 42 878 1424 183 20 . 610 379 252 144 1430 773 640 2102 250 Guns 12166 | 22 543 87 . 570 318 699 925 1887 1033 1299 1219 617 42 228 706 69 20 . . 379 252 . 52 773 . 249 177 Cannons 833 | . . . . . . . . 262 243 . . . . 86 242 . . . . . . . . . . . . Explosions 6681 | . . . . . 393 . 1300 . 674 836 702 . . 564 224 . . . 610 . . . 1378 . . . . Melee 2977 | . . . . . . . . . . . . . . . 234 91 . . . . . 144 . . 640 1799 69 Ramming 230 | . 19 . . 4 9 11 . 52 2 30 . 4 . . 18 23 . . . . . . . . . 54 4 Kinetic 10783 | . 130 . . 570 318 699 925 1698 970 1299 1203 617 42 228 706 69 20 . . 166 252 . 52 773 . 46 . Thermal 1643 | 22 371 50 . . . . . 262 243 . . . . 317 242 . . . 136 . . . . . . . . Explosive 5700 | . . . . . 393 . 1300 . 674 836 702 . . 333 224 . . . . . . . 1238 . . . . Electromagnetic 1554 | . 42 37 . . . . . 189 63 . 16 . . . . . . . 474 213 . . 140 . . 203 177 Impact . | . . . . . . . . . . . . . . . . . . . . . . . . . . . . Slashing 2977 | . . . . . . . . . . . . . . . 234 91 . . . . . 144 . . 640 1799 69 Piercing . | . . . . . . . . . . . . . . . . . . . . . . . . . . . . Highest Corruption 14 | . . . . 2 2 2 2 8 8 5 11 . . . 5 . . . . . . . . . . 3 14 Average Corruption 3 | . . . . 2 2 2 2 5 3 2 4 . . . 3 . . . . . . . . . . 2 4 Corruption Purged 29 | . . . . . . . . . 8 . 16 . . . 5 . . . . . . . . . . . . Effects 199 | . . . . . 3 7 8 60 14 13 65 . . . 14 . . . . . . . . . . 8 7 Message Errors 62 | . . . . . 1 2 3 19 4 3 23 . . . 5 . . . . . . . . . . . 2 Matter Fused 32 | . . . . . . . . 9 7 1 8 . . . 1 . . . . . . . . . . 4 2 Heat Flow Errors 23 | . . . . . . 2 1 8 1 . 6 . . . 2 . . . . . . . . . . 2 1 Energy Discharges 25 | . . . . . . 1 2 6 1 . 13 . . . 1 . . . . . . . . . . 1 . Parts Rejected 1 | . . . . . . . . 1 . . . . . . . . . . . . . . . . . . . Data Loss (minor) 17 | . . . . . . . 2 7 . 3 3 . . . 2 . . . . . . . . . . . . Data Loss (major) 6 | . . . . . . . . 4 . 1 1 . . . . . . . . . . . . . . . . Misfires 4 | . . . . . . . . . 1 1 2 . . . . . . . . . . . . . . . . Alerts 1 | . . . . . . . . . . . 1 . . . . . . . . . . . . . . . . Misdirections 1 | . . . . . . . . . . . . . . . . . . . . . . . . . . . 1 Targeting Errors 27 | . . . . . 2 2 . 6 . 4 8 . . . 3 . . . . . . . . . . 1 1 Overload Shots . | . . . . . . . . . . . . . . . . . . . . . . . . . . . . Overflow Damage 603 | . . . . . 5 . 52 3 10 . 6 . . . 60 61 . . . . . . 110 . 56 240 . Projectiles 3 | . . . . . . . . 3 . . . . . . . . . . . . . . . . . . . Explosions 183 | . . . . . 5 . 52 . 10 . 6 . . . . . . . . . . . 110 . . . . Melee 417 | . . . . . . . . . . . . . . . 60 61 . . . . . . . . 56 240 . Knockbacks . | . . . . . . . . . . . . . . . . . . . . . . . . . . . . Impact . | . . . . . . . . . . . . . . . . . . . . . . . . . . . . Kinetic . | . . . . . . . . . . . . . . . . . . . . . . . . . . . . Secondary . | . . . . . . . . . . . . . . . . . . . . . . . . . . . . Self-Inflicted Damage 309 | . . . . . . . 122 . 83 61 16 . . . . . . . . . . . 25 . . . 2 Shots 11 | . . . . . . . 4 . 3 2 1 . . . . . . . . . . . 1 . . . . Rammed 32 | 1 4 . . . 1 4 . 11 1 2 . 1 . . 2 1 . . . . . . . . . 2 2 Targets Rammed 36 | 1 6 . . 1 1 4 . 11 1 2 . 1 . . 3 1 . . . . . . . . . 2 2 Kicked . | . . . . . . . . . . . . . . . . . . . . . . . . . . . . Crushed 4 | . 2 . . 1 . . . . . . . . . . 1 . . . . . . . . . . . . Highest Temperature 260 | 30 192 . . . 3 210 170 233 135 6 260 4 4 71 206 30 48 . 41 65 90 33 90 45 60 112 194 Average Temperature 50 | 18 76 . . . 3 87 24 75 23 6 43 2 3 19 107 18 19 . 15 19 31 16 25 19 27 35 86 Received Heat Transfer 3561 | . 132 . . 90 216 108 441 312 312 105 225 9 . 381 306 27 31 51 60 33 135 36 197 81 138 63 72 Siege Activations 1 | . . . . . . . . . . . . . . . . . . . . . . . . . . 1 . Total Turns 29 | . . . . . . . . . . . . . . . . . . . . . . . . . . 29 . Longest Duration 29 | . . . . . . . . . . . . . . . . . . . . . . . . . . 29 . Robots Corrupted 5 | . . . . . . . . 1 . . . . . . . . . . 1 1 . . . . . 1 1 Combat Hostiles 5 | . . . . . . . . 1 . . . . . . . . . . 1 1 . . . . . 1 1 Parts Fried 12 | . . . . . . . . 2 . . . . . . 3 . . . 1 3 . . . . . 2 1 Impact Corruptions 2 | . . . . . . . . . . . . . . . 1 . . . . . . . . . . 1 . Robots Melted . | . . . . . . . . . . . . . . . . . . . . . . . . . . . . Combat Hostiles . | . . . . . . . . . . . . . . . . . . . . . . . . . . . . Parts Melted 5 | . 2 . . . . . . 2 1 . . . . . . . . . . . . . . . . . . Heat Transferred 2569 | 62 1110 148 . . . . . 333 222 . . . . 261 333 . . . 100 . . . . . . . . Parts Sabotaged . | . . . . . . . . . . . . . . . . . . . . . . . . . . . . Parts Stolen . | . . . . . . . . . . . . . . . . . . . . . . . . . . . . Parts Stripped . | . . . . . . . . . . . . . . . . . . . . . . . . . . . . Power Chain Reactions 1 | . . . . . . . . . . . . . . . . . . . 1 . . . . . . . . Missiles Intercepted . | . . . . . . . . . . . . . . . . . . . . . . . . . . . . Alert | -11 -10 -9 -9 -8 -8 -8 -8 -7 -7 -7 -7 -6 -6 -5 -5 -4 -4 -3 -3 -3 -3 -2 -2 -2 -2 -1 -1 ------- Run | Scr Mat Mat Min Mat Gar Mat Gar Fac Gar Fac Gar Fac Gar Fac Gar Fac Gar Res Gar Res Gar Res Gar Res Gar Acc Com Peak Influence 1080 | 5 193 30 11 205 531 377 651 381 835 1020 1080 642 1032 582 670 407 521 407 884 734 532 237 374 198 309 184 62 Average Influence 396 | 1 63 16 11 101 316 263 463 214 279 595 829 546 664 226 500 379 417 329 713 599 334 167 246 97 149 49 31 Maximum Alert Level 3 | . . . . 1 2 1 2 1 3 3 3 2 3 2 2 2 2 2 3 3 2 1 1 . 1 . . Low Security (%) 30 | 100 100 100 100 99 22 12 12 51 56 . . . . 54 . . . . . . . 66 22 100 45 100 100 Level 1 24 | . . . . . 39 87 22 48 14 . . . 7 18 27 56 24 81 4 . 81 33 77 . 54 . . Level 2 28 | . . . . . 38 . 65 . 19 72 27 100 54 27 72 43 75 18 15 90 17 . . . . . . Level 3 16 | . . . . . . . . . 9 27 72 . 37 . . . . . 80 9 . . . . . . . Level 4 . | . . . . . . . . . . . . . . . . . . . . . . . . . . . . Level 5 . | . . . . . . . . . . . . . . . . . . . . . . . . . . . . High Security . | . . . . . . . . . . . . . . . . . . . . . . . . . . . . Max Security . | . . . . . . . . . . . . . . . . . . . . . . . . . . . . Squads Dispatched 45 | . 3 1 . 1 . . . 4 . 6 . 3 . 7 . 1 . 1 . 6 . 3 . 3 . 4 2 Investigation 5 | . . . . . . . . . . 1 . . . 1 . . . . . . . 2 . 1 . . . Extermination 14 | . . . . . . . . 3 . 2 . 1 . 2 . 1 . . . 1 . . . 1 . 3 . Reinforcement 17 | . 3 1 . . . . . 1 . 2 . 1 . 4 . . . . . 1 . 1 . . . 1 2 Assault 3 | . . . . . . . . . . 1 . 1 . . . . . . . 1 . . . . . . . Garrison 6 | . . . . 1 . . . . . . . . . . . . . 1 . 3 . . . 1 . . . Intercept . | . . . . . . . . . . . . . . . . . . . . . . . . . . . . Construction Impeded 5 | . . . . . . . . . . 1 . . . 2 . . . . . 1 . . . . . 1 . Haulers Reinforced 2 | . . . . . . . . 1 . . . . . 1 . . . . . . . . . . . . . Alert ID Control Effect 91 | . . . . . . . . . . . . . . . . . . . . . 15 10 12 7 13 34 . Stealth | -11 -10 -9 -9 -8 -8 -8 -8 -7 -7 -7 -7 -6 -6 -5 -5 -4 -4 -3 -3 -3 -3 -2 -2 -2 -2 -1 -1 --------- Run | Scr Mat Mat Min Mat Gar Mat Gar Fac Gar Fac Gar Fac Gar Fac Gar Fac Gar Res Gar Res Gar Res Gar Res Gar Acc Com Distress Signals 13 | . 1 . . . . 2 . . 1 1 . . . . . . . . . 4 . 1 . 1 . 2 . Communications Jammed . | . . . . . . . . . . . . . . . . . . . . . . . . . . . . Distress Signals . | . . . . . . . . . . . . . . . . . . . . . . . . . . . . Times Spotted 548 | . 17 1 . 11 18 8 36 23 31 26 15 16 19 30 17 2 26 4 34 32 31 12 31 14 31 47 16 Peak Tracking Total 12 | . 5 1 . 4 9 2 4 4 9 5 6 5 6 8 5 2 7 3 9 7 9 5 9 5 7 7 12 Tactical Retreats 30 | . . . . . 1 . 13 1 6 . 1 1 1 . 3 . 1 . . . . . 1 . . . 1 Traps | -11 -10 -9 -9 -8 -8 -8 -8 -7 -7 -7 -7 -6 -6 -5 -5 -4 -4 -3 -3 -3 -3 -2 -2 -2 -2 -1 -1 ------- Run | Scr Mat Mat Min Mat Gar Mat Gar Fac Gar Fac Gar Fac Gar Fac Gar Fac Gar Res Gar Res Gar Res Gar Res Gar Acc Com Traps Triggered 68 | . . . . . . . 6 4 3 2 5 . 7 1 7 . 2 . 14 . 4 . 5 1 6 1 . Indirectly . | . . . . . . . . . . . . . . . . . . . . . . . . . . . . Trap Hack Attempts . | . . . . . . . . . . . . . . . . . . . . . . . . . . . . Triggered . | . . . . . . . . . . . . . . . . . . . . . . . . . . . . Disarmed . | . . . . . . . . . . . . . . . . . . . . . . . . . . . . Reprogrammed . | . . . . . . . . . . . . . . . . . . . . . . . . . . . . Reused . | . . . . . . . . . . . . . . . . . . . . . . . . . . . . Traps Extracted . | . . . . . . . . . . . . . . . . . . . . . . . . . . . . Installed . | . . . . . . . . . . . . . . . . . . . . . . . . . . . . Triggered . | . . . . . . . . . . . . . . . . . . . . . . . . . . . . Machines | -11 -10 -9 -9 -8 -8 -8 -8 -7 -7 -7 -7 -6 -6 -5 -5 -4 -4 -3 -3 -3 -3 -2 -2 -2 -2 -1 -1 ---------- Run | Scr Mat Mat Min Mat Gar Mat Gar Fac Gar Fac Gar Fac Gar Fac Gar Fac Gar Res Gar Res Gar Res Gar Res Gar Acc Com Machines Disabled 46 | . . . . 1 . . 2 1 3 . 3 . 2 6 3 . 4 . 4 1 5 . 4 . 5 2 . Max in Single Turn 4 | . . . . 1 . . 1 1 1 . 1 . 1 4 1 . 1 . 1 . 1 . 1 . 1 1 . Garrison Access 1 | . . . . . . . . . . . . . . . . . . . . . . . . . . 1 . Garrison Relay 29 | . . . . . . . 1 . 2 . 3 . 2 . 3 . 3 . 4 . 4 . 4 . 3 . . Phase Generator 1 | . . . . . . . . . . . . . . . . . . . . . . . . . 1 . . Machines Sabotaged . | . . . . . . . . . . . . . . . . . . . . . . . . . . . . Garrisons Compromised . | . . . . . . . . . . . . . . . . . . . . . . . . . . . . Overloaded Fab Kills . | . . . . . . . . . . . . . . . . . . . . . . . . . . . . Fab Network Shutdowns 1 | . . . . . . . . . . 1 . . . . . . . . . . . . . . . . . Hacking | -11 -10 -9 -9 -8 -8 -8 -8 -7 -7 -7 -7 -6 -6 -5 -5 -4 -4 -3 -3 -3 -3 -2 -2 -2 -2 -1 -1 --------- Run | Scr Mat Mat Min Mat Gar Mat Gar Fac Gar Fac Gar Fac Gar Fac Gar Fac Gar Res Gar Res Gar Res Gar Res Gar Acc Com Machines Accessed 29 | . 6 . . 1 . 3 . 5 . 3 . 1 . 2 . 1 . 1 . 2 . 1 . 1 . 1 1 Terminals 11 | . 5 . . . . 1 . 4 . . . . . . . . . . . . . . . . . . 1 Fabricators 3 | . . . . . . . . . . 1 . . . 1 . . . . . 1 . . . . . . . Repair Stations 3 | . 1 . . . . 1 . . . 1 . . . . . . . . . . . . . . . . . Recycling Units . | . . . . . . . . . . . . . . . . . . . . . . . . . . . . Scanalyzers . | . . . . . . . . . . . . . . . . . . . . . . . . . . . . Garrison Access 12 | . . . . 1 . 1 . 1 . 1 . 1 . 1 . 1 . 1 . 1 . 1 . 1 . 1 . Total Hacks 69 | . 24 . . 1 . 6 . 14 . 10 . 1 . 5 . 1 . 1 . 2 . 1 . 1 . 1 1 Successful 44 | . 13 . . 1 . 4 . 6 . 9 . 1 . 3 . 1 . 1 . 1 . 1 . 1 . 1 1 Failed 25 | . 11 . . . . 2 . 8 . 1 . . . 2 . . . . . 1 . . . . . . . Catastrophic 3 | . 2 . . . . . . 1 . . . . . . . . . . . . . . . . . . . Database Lockouts . | . . . . . . . . . . . . . . . . . . . . . . . . . . . . Manual 17 | . 9 . . . . . . 8 . . . . . . . . . . . . . . . . . . . Terminals 34 | . 18 . . . . 2 . 13 . . . . . . . . . . . . . . . . . . 1 Fabricators 9 | . . . . . . . . . . 4 . . . 4 . . . . . 1 . . . . . . . Repair Stations 14 | . 6 . . . . 3 . . . 5 . . . . . . . . . . . . . . . . . Recycling Units . | . . . . . . . . . . . . . . . . . . . . . . . . . . . . Scanalyzers . | . . . . . . . . . . . . . . . . . . . . . . . . . . . . Garrison Access 12 | . . . . 1 . 1 . 1 . 1 . 1 . 1 . 1 . 1 . 1 . 1 . 1 . 1 . Terminal Hacks 13 | . 6 . . . . 1 . 5 . . . . . . . . . . . . . . . . . . 1 Record 1 | . 1 . . . . . . . . . . . . . . . . . . . . . . . . . . Part Schematic 1 | . 1 . . . . . . . . . . . . . . . . . . . . . . . . . . Robot Analysis 1 | . 1 . . . . . . . . . . . . . . . . . . . . . . . . . . Prototype ID Bank 2 | . 1 . . . . . . 1 . . . . . . . . . . . . . . . . . . . Open Door 1 | . . . . . . . . . . . . . . . . . . . . . . . . . . . 1 Terminal Index 1 | . . . . . . . . 1 . . . . . . . . . . . . . . . . . . . Unreport Threat 2 | . . . . . . 1 . 1 . . . . . . . . . . . . . . . . . . . Locate Traps 1 | . 1 . . . . . . . . . . . . . . . . . . . . . . . . . . Recall Reinforcements 1 | . 1 . . . . . . . . . . . . . . . . . . . . . . . . . . Zone Layout 2 | . . . . . . . . 2 . . . . . . . . . . . . . . . . . . . Fabricator Hacks 6 | . . . . . . . . . . 4 . . . 2 . . . . . . . . . . . . . Load Schematic 2 | . . . . . . . . . . 1 . . . 1 . . . . . . . . . . . . . Build 4 | . . . . . . . . . . 3 . . . 1 . . . . . . . . . . . . . Repair Station Hacks 11 | . 5 . . . . 2 . . . 4 . . . . . . . . . . . . . . . . . Scan Component 6 | . 3 . . . . 1 . . . 2 . . . . . . . . . . . . . . . . . Repair 5 | . 2 . . . . 1 . . . 2 . . . . . . . . . . . . . . . . . Recycling Unit Hacks . | . . . . . . . . . . . . . . . . . . . . . . . . . . . . Scanalyzer . | . . . . . . . . . . . . . . . . . . . . . . . . . . . . Garrison Access Hacks 12 | . . . . 1 . 1 . 1 . 1 . 1 . 1 . 1 . 1 . 1 . 1 . 1 . 1 . Unlock Access 11 | . . . . 1 . 1 . 1 . 1 . 1 . 1 . 1 . 1 . 1 . 1 . 1 . . . Seal Access 1 | . . . . . . . . . . . . . . . . . . . . . . . . . . 1 . Unauthorized Hacks 5 | . 4 . . . . . . 1 . . . . . . . . . . . . . . . . . . . Terminals 2 | . 2 . . . . . . . . . . . . . . . . . . . . . . . . . . Botnet 2 | . 2 . . . . . . . . . . . . . . . . . . . . . . . . . . Fabricators . | . . . . . . . . . . . . . . . . . . . . . . . . . . . . Repair Stations . | . . . . . . . . . . . . . . . . . . . . . . . . . . . . Recycling Units . | . . . . . . . . . . . . . . . . . . . . . . . . . . . . Scanalyzers . | . . . . . . . . . . . . . . . . . . . . . . . . . . . . Garrison Access . | . . . . . . . . . . . . . . . . . . . . . . . . . . . . Data Cores Recovered . | . . . . . . . . . . . . . . . . . . . . . . . . . . . . Used . | . . . . . . . . . . . . . . . . . . . . . . . . . . . . Hacking Detections 21 | . 6 . . . . 3 . 4 . 3 . . . 2 . 1 . . . 1 . . . 1 . . . Full Trace Events 2 | . . . . . . 1 . . . . . . . 1 . . . . . . . . . . . . . Feedback Events . | . . . . . . . . . . . . . . . . . . . . . . . . . . . . Feedback Blocked . | . . . . . . . . . . . . . . . . . . . . . . . . . . . . Robot Schematics Acquired . | . . . . . . . . . . . . . . . . . . . . . . . . . . . . Robots Built . | . . . . . . . . . . . . . . . . . . . . . . . . . . . . Matter . | . . . . . . . . . . . . . . . . . . . . . . . . . . . . Time . | . . . . . . . . . . . . . . . . . . . . . . . . . . . . Total Robot Build Rating . | . . . . . . . . . . . . . . . . . . . . . . . . . . . . Part Schematics Acquired 1 | . 1 . . . . . . . . . . . . . . . . . . . . . . . . . . Parts Built 4 | . . . . . . . . . . 3 . . . 1 . . . . . . . . . . . . . Matter 408 | . . . . . . . . . . 306 . . . 102 . . . . . . . . . . . . . Time 204 | . . . . . . . . . . 153 . . . 51 . . . . . . . . . . . . . Total Part Build Rating 4 | . . . . . . . . . . 3 . . . 1 . . . . . . . . . . . . . Parts Repaired 5 | . 2 . . . . 1 . . . 2 . . . . . . . . . . . . . . . . . Time 160 | . 52 . . . . 38 . . . 70 . . . . . . . . . . . . . . . . . Parts Recycled . | . . . . . . . . . . . . . . . . . . . . . . . . . . . . Recycled Matter . | . . . . . . . . . . . . . . . . . . . . . . . . . . . . Retrieved Matter . | . . . . . . . . . . . . . . . . . . . . . . . . . . . . Retrieved Components . | . . . . . . . . . . . . . . . . . . . . . . . . . . . . Parts Scanalyzed . | . . . . . . . . . . . . . . . . . . . . . . . . . . . . Part Schematics Acquired . | . . . . . . . . . . . . . . . . . . . . . . . . . . . . Parts Damaged . | . . . . . . . . . . . . . . . . . . . . . . . . . . . . Bothacking | -11 -10 -9 -9 -8 -8 -8 -8 -7 -7 -7 -7 -6 -6 -5 -5 -4 -4 -3 -3 -3 -3 -2 -2 -2 -2 -1 -1 ------------ Run | Scr Mat Mat Min Mat Gar Mat Gar Fac Gar Fac Gar Fac Gar Fac Gar Fac Gar Res Gar Res Gar Res Gar Res Gar Acc Com Used RIF Installer 11 | . . . . . 1 . 1 . 1 . 1 . 1 . 1 . 1 . 1 . 1 . 1 . 1 . . Coupler Efficiency 1 | . . . . . . . . . . . . . . . . . 1 . . . . . . . . . . Robot Detection 1 | . . . . . . . . . 1 . . . . . . . . . . . . . . . . . . Patrol Navigation 1 | . . . . . . . 1 . . . . . . . . . . . . . . . . . . . . Alert ID Control 1 | . . . . . . . . . . . . . . . . . . . . . 1 . . . . . . Structural Interface 1 | . . . . . . . . . . . . . . . 1 . . . . . . . . . . . . Program Shield 1 | . . . . . . . . . . . . . 1 . . . . . . . . . . . . . . Autooverride 2 | . . . . . . . . . . . . . . . . . . . . . . . 1 . 1 . . Autoassimilate 2 | . . . . . . . . . . . 1 . . . . . . . 1 . . . . . . . . Robots Hacked 207 | . . . . . . . . 3 . 6 1 5 4 15 1 3 17 2 20 17 27 9 19 9 20 27 2 Non-combat 18 | . . . . . . . . 2 . . . 1 . 2 . . . . . 3 . 1 . 3 . 5 1 Combat 189 | . . . . . . . . 1 . 6 1 4 4 13 1 3 17 2 20 14 27 8 19 6 20 22 1 Autooverrided 22 | . . . . . . . . . . . . . . . . . . . . . . . 1 2 6 13 . Autoassimilated 64 | . . . . . . . . . . . . 2 3 4 . 1 2 2 7 8 11 3 7 1 6 7 . Robot Hacks Applied 130 | . . . . . . . . 4 . 7 1 3 1 13 1 3 17 . 14 9 16 6 11 7 8 7 2 drop_inventory 7 | . . . . . . . . 2 . . . . . . . . . . . 1 . 1 . . . 3 . check_alert 1 | . . . . . . . . . . . . . . . . . . . . . . . . . . . 1 purge_threat 4 | . . . . . . . . . . . . . . 3 . . . . . . . . . 1 . . . block_reporting 2 | . . . . . . . . . . . . . . . . . . . . . . . . 1 . 1 . map_route 1 | . . . . . . . . . . . . . . . . . . . . . . . . . . 1 . find_garrison 6 | . . . . . . . . 1 . 1 . . . 1 . 1 . . . 1 . . . 1 . . . amplify_resonance 1 | . . . . . . . . . . . . . . 1 . . . . . . . . . . . . . disable_weapons 1 | . . . . . . . . . . . . . . . . 1 . . . . . . . . . . . overwrite_iff 32 | . . . . . . . . . . 4 . 1 . 2 . . 5 . 3 1 11 3 1 . 1 . . streamctrl_high 2 | . . . . . . . . . . 1 . . . . 1 . . . . . . . . . . . . formatsys_low 3 | . . . . . . . . . . . . . . 1 . . . . . 1 . . . 1 . . . formatsys_high 70 | . . . . . . . . 1 . 1 1 2 1 5 . 1 12 . 11 5 5 2 10 3 7 2 1 Relay Couplers Released 114 | . . . . . . . 5 . 8 . 12 . 9 . 9 . 12 . 16 . 16 . 13 . 14 . . Machine Destruction 114 | . . . . . . . 5 . 8 . 12 . 9 . 9 . 12 . 16 . 16 . 13 . 14 . . Attached 78 | . . . . . . . . 2 3 2 3 4 2 4 3 3 10 1 6 1 10 3 5 1 5 8 2 Robots Rewired 6 | . . . . . . . . . . . . . 6 . . . . . . . . . . . . . . Allies Hacked . | . . . . . . . . . . . . . . . . . . . . . . . . . . . . Hacks Repelled . | . . . . . . . . . . . . . . . . . . . . . . . . . . . . Allies | -11 -10 -9 -9 -8 -8 -8 -8 -7 -7 -7 -7 -6 -6 -5 -5 -4 -4 -3 -3 -3 -3 -2 -2 -2 -2 -1 -1 -------- Run | Scr Mat Mat Min Mat Gar Mat Gar Fac Gar Fac Gar Fac Gar Fac Gar Fac Gar Res Gar Res Gar Res Gar Res Gar Acc Com Total Allies 196 | . . . . . . . . 1 . 6 1 5 10 12 1 2 17 2 20 15 27 8 19 7 20 22 1 Largest Group 10 | . . . . . . . . 1 . 2 1 2 10 7 6 2 6 6 9 7 7 7 9 6 8 9 1 Highest-Rated Group 515 | . . . . . . . . 32 . 45 21 58 243 201 201 98 250 305 381 247 363 363 515 348 419 495 64 Highest-Rated Ally 222 | . . . . . . . . 32 . 32 21 47 32 49 41 49 58 58 58 64 64 69 69 64 69 222 64 Total Orders 10 | . . . . . . . . . . . 2 . . 1 4 . . . . 2 . . . 1 . . . STAY 1 | . . . . . . . . . . . 1 . . . . . . . . . . . . . . . . FOLLOW 1 | . . . . . . . . . . . 1 . . . . . . . . . . . . . . . . AID 8 | . . . . . . . . . . . . . . 1 4 . . . . 2 . . . 1 . . . Ally Attacks 1273 | . . . . . . . . . . 26 6 4 110 72 35 2 89 19 121 177 101 68 79 60 102 202 . Total Damage 35383 | . . . . . . . . . . 491 175 89 2001 2156 964 94 2211 618 2944 3679 2996 2081 2925 1679 3073 7207 . Kills 191 | . . . . . . . . . . 2 1 1 19 17 3 . 11 4 16 19 15 11 13 7 15 37 . Allies Corrupted 3 | . . . . . . . . . . . . . . . . . . . . 1 . . . . . 2 . Allies Melted 1 | . . . . . . . . . . . . 1 . . . . . . . . . . . . . . . Intel | -11 -10 -9 -9 -8 -8 -8 -8 -7 -7 -7 -7 -6 -6 -5 -5 -4 -4 -3 -3 -3 -3 -2 -2 -2 -2 -1 -1 ------- Run | Scr Mat Mat Min Mat Gar Mat Gar Fac Gar Fac Gar Fac Gar Fac Gar Fac Gar Res Gar Res Gar Res Gar Res Gar Acc Com Robot Analysis Total 1 | . 1 . . . . . . . . . . . . . . . . . . . . . . . . . . Derelict Logs Recovered 1 | . . . 1 . . . . . . . . . . . . . . . . . . . . . . . . Drone Launches . | . . . . . . . . . . . . . . . . . . . . . . . . . . . . Drone Recoveries . | . . . . . . . . . . . . . . . . . . . . . . . . . . . . Exploration | -11 -10 -9 -9 -8 -8 -8 -8 -7 -7 -7 -7 -6 -6 -5 -5 -4 -4 -3 -3 -3 -3 -2 -2 -2 -2 -1 -1 ------------- Run | Scr Mat Mat Min Mat Gar Mat Gar Fac Gar Fac Gar Fac Gar Fac Gar Fac Gar Res Gar Res Gar Res Gar Res Gar Acc Com Turns Passed 24239 | 104 649 119 228 183 315 660 934 2051 2026 976 2983 767 1157 1035 1151 298 760 108 1235 709 1095 348 1308 340 1074 1360 266 Spaces Moved 9330 | 55 303 59 143 56 155 288 427 993 468 260 621 212 501 431 387 129 385 51 582 275 460 163 571 109 453 558 235 Core 179 | 2 . . . . . . . . . . . . . . . . . . . 6 1 . . . . . 170 Treads 7183 | 53 303 59 143 56 91 252 427 993 468 260 621 212 501 415 387 129 21 . 88 59 6 . 454 109 453 558 65 Legs 761 | . . . . . 64 36 . . . . . . . 16 . . . . . . 365 163 117 . . . . Wheels 1198 | . . . . . . . . . . . . . . . . . 364 51 494 210 79 . . . . . . Hover . | . . . . . . . . . . . . . . . . . . . . . . . . . . . . Flight 9 | . . . . . . . . . . . . . . . . . . . . . 9 . . . . . . Fastest Speed 50 | 50 160 160 160 160 150 145 172 165 180 180 200 200 200 180 180 200 160 160 160 160 160 175 175 210 210 185 50 Average Speed 185 | 156 160 160 160 160 157 160 177 173 180 190 200 200 200 197 193 200 162 160 177 218 196 179 202 210 210 207 86 Slowest Speed 2050 | 160 160 160 160 180 180 172 180 180 200 200 200 200 200 200 200 200 200 170 240 2050 1900 180 210 210 210 210 185 Overloaded Moves . | . . . . . . . . . . . . . . . . . . . . . . . . . . . . Propulsion Burnouts . | . . . . . . . . . . . . . . . . . . . . . . . . . . . . Robots Hopped . | . . . . . . . . . . . . . . . . . . . . . . . . . . . . Cave-ins Triggered . | . . . . . . . . . . . . . . . . . . . . . . . . . . . . Exploration Rate (%) 36 | 5 49 9 54 9 36 19 63 27 53 9 77 7 61 13 58 6 77 2 90 12 68 7 89 5 79 24 12 Regions Visited 27 Branch Regions 2 Pre-discovered Areas . | . . . . . . . . . . . . . . . . . . . . . . . . . . . . Known Exits Taken 11 | . . . . 1 . 1 . 1 . 1 . 1 . 1 . 1 . 1 . 1 . 1 . 1 . . . Unknown Exits Taken 5 | 1 1 1 1 . . . . . . . . . . . . . . . . . . . . . . 1 . Scrap Searched . | . . . . . . . . . . . . . . . . . . . . . . . . . . . . Spaces Dug 29 | . . . . . . . . . . . 1 . . . . 5 . . . 4 . . 10 . . 3 6 Terrain Destroyed 269 | . . . . . 6 . 92 . 18 63 15 . . 14 . 5 . . 9 4 . . 34 . . 3 6 Melee 18 | . . . . . . . . . . . . . . . . 5 . . . 4 . . . . . 3 6 Projectile 12 | . . . . . . . 1 . 5 5 . . . . . . . . . . . . 1 . . . . AOE 239 | . . . . . 6 . 91 . 13 58 15 . . 14 . . . . 9 . . . 33 . . . . Actions | -11 -10 -9 -9 -8 -8 -8 -8 -7 -7 -7 -7 -6 -6 -5 -5 -4 -4 -3 -3 -3 -3 -2 -2 -2 -2 -1 -1 --------- Run | Scr Mat Mat Min Mat Gar Mat Gar Fac Gar Fac Gar Fac Gar Fac Gar Fac Gar Res Gar Res Gar Res Gar Res Gar Acc Com Total 15186 | 67 408 75 142 92 189 410 524 1210 1567 632 2271 500 653 582 727 153 508 77 771 354 635 224 702 189 559 693 272 Wait 3808 | . 53 . . 3 . 47 1 15 1006 265 1542 231 48 52 242 3 28 21 21 16 57 28 25 49 28 26 1 Move 9312 | 55 302 58 142 56 154 287 426 993 467 260 620 212 500 431 386 128 384 51 581 275 459 162 570 109 452 557 235 Hop . | . . . . . . . . . . . . . . . . . . . . . . . . . . . . Pick Up 265 | 4 9 5 . . 3 12 13 29 5 7 20 6 11 14 15 2 14 1 11 6 20 9 15 . 18 11 5 Fast Attach 74 | 7 . 2 . 4 4 6 4 8 6 2 4 . 2 2 4 . 3 . 2 . 6 . 2 . . 2 4 Attach 118 | . 2 1 . 1 . 5 4 9 3 7 7 6 1 12 2 3 3 2 5 1 11 2 10 . 6 11 4 Detach 1 | . . . . . . . . . . . 1 . . . . . . . . . . . . . . . . Swap 220 | . 2 . . . 4 2 12 31 15 20 10 2 2 21 11 3 12 1 6 13 9 3 10 6 4 16 5 Drop 209 | . 3 4 . . 4 9 9 42 13 3 3 4 9 14 14 . 12 1 8 6 10 9 9 . 8 14 1 Fire 756 | 1 31 5 . 27 19 38 45 67 46 66 56 37 8 36 34 7 30 . 28 32 29 10 39 24 14 20 7 Melee 78 | . . . . . . . . . . . . . . . 2 6 1 . 4 4 5 1 2 . 13 32 8 Ram 1 | . . . . . . . . . . . . . . . . . . . . . . . . . . . 1 Kick . | . . . . . . . . . . . . . . . . . . . . . . . . . . . . Crush 34 | . 6 . . 1 1 4 . 11 1 2 . 1 . . 3 1 . . . . . . . . . 2 1 Escape Stasis 223 | . . . . . . . 10 4 5 . 8 . 14 . 14 . 16 . 99 . 23 . 16 . 12 2 . Rewire 87 | . . . . . . . . 1 . . . 1 58 . . . 5 . 6 1 6 . 4 1 4 . . Trap . | . . . . . . . . . . . . . . . . . . . . . . . . . . . . Miscellaneous . | . . . . . . . . . . . . . . . . . . . . . . . . . . . . Route ------- -11/Scrapyard -10/Materials -9/Materials -9/Mines -8/Materials -8/Garrison -8/Materials -8/Garrison (discovered 3 exits: *Fac x3) -7/Factory (discovered 3 exits: *Fac / [*Low] / Gar) -7/Garrison -7/Factory (discovered 2 exits: *Fac / Gar) -7/Garrison (discovered 3 exits: *Fac x3) -6/Factory -6/Garrison (discovered 2 exits: *Fac x2) -5/Factory -5/Garrison (discovered 2 exits: *Fac x2) -4/Factory (discovered 2 exits: *Res / Gar) -4/Garrison -3/Research -3/Garrison (discovered 3 exits: *Res x3) -3/Research -3/Garrison -2/Research -2/Garrison (discovered 3 exits: *Res x3) -2/Research -2/Garrison (discovered 3 exits: *Acc x3) -1/Access -1/Command 0b10 Command History --------- Turn | Location | Event 23 | -11/Scrapyard | Discovered new exit (range 15) 105 | -11/Scrapyard | Entered Materials 307 | -10/Materials | Build established: Mutant 608 | -10/Materials | Repaired Lgt. Treads 635 | -10/Materials | Repaired Med. Laser 742 | -10/Materials | Discovered new exit (range 6) 754 | -10/Materials | Entered another Materials area 754 | -9/Materials | Evolved 2 slots: Utility x2 798 | -9/Materials | Discovered new exit (range 13) 873 | -9/Materials | Entered Mines 901 | -9/Mines | Learned Materials emergency access door positions 1072 | -9/Mines | Discovered new exit (range 13) 1101 | -9/Mines | Entered Materials 1101 | -8/Materials | Evolved 2 slots: Utility x2 1242 | -8/Materials | Garrison activated, responded to threat 1284 | -8/Materials | Identified exit to Garrison 1284 | -8/Materials | Entered Garrison 1304 | -8/Garrison | Lost 3 parts (2n1u) 1408 | -8/Garrison | Triggered checkpoint 1473 | -8/Garrison | Triggered checkpoint 1509 | -8/Garrison | Destroyed 9 combat bots 1560 | -8/Garrison | Build established: Scavenger-Mutant 1563 | -8/Garrison | Discovered new exit (range 12) 1593 | -8/Garrison | Installed Relay Interface Framework 1599 | -8/Garrison | Entered Materials 1658 | -8/Materials | Repaired Insulated Plating 2258 | -8/Materials | Identified exit to Garrison 2259 | -8/Materials | Entered Garrison 2336 | -8/Garrison | Triggered checkpoint 2372 | -8/Garrison | Triggered checkpoint 2396 | -8/Garrison | Triggered checkpoint 2447 | -8/Garrison | Destroyed 9 combat bots 2449 | -8/Garrison | Lost 4 parts (1p2u1w) 2460 | -8/Garrison | Triggered checkpoint 2572 | -8/Garrison | Triggered checkpoint 2582 | -8/Garrison | Core integrity fell below 50% 2593 | -8/Garrison | Garrison Relay disabled 2810 | -8/Garrison | Discovered new exit (range 9) 2971 | -8/Garrison | Triggered checkpoint 2986 | -8/Garrison | Discovered new exit (range 14) 3046 | -8/Garrison | Triggered checkpoint 3163 | -8/Garrison | Discovered new exit (range 8) 3186 | -8/Garrison | Expanded RIF knowledge: Patrol Navigation 3193 | -8/Garrison | Entered Factory 3193 | -7/Factory | Evolved 2 slots: Utility x2 3345 | -7/Factory | Found Prototype Launcher 3345 | -7/Factory | Identified Rocket Array 3348 | -7/Factory | Found Rocket Array 3498 | -7/Factory | Build established: Bothacker-Mutant 3728 | -7/Factory | Discovered new exit (range 13) 4418 | -7/Factory | P-60 Hacker assimilated allied Guardian 4a 4691 | -7/Factory | Build established: Hauler-Mutant 4803 | -7/Factory | Discovered new exit (range 12) 5244 | -7/Factory | Identified exit to Garrison 5244 | -7/Factory | Entered Garrison 6354 | -7/Garrison | Triggered checkpoint 6408 | -7/Garrison | Triggered checkpoint 6420 | -7/Garrison | Triggered checkpoint 6433 | -7/Garrison | Destroyed 11 combat bots 6515 | -7/Garrison | Discovered new exit (range 13) 6607 | -7/Garrison | Expanded RIF knowledge: Robot Detection 6670 | -7/Garrison | Triggered checkpoint 6774 | -7/Garrison | Garrison Relay disabled 7004 | -7/Garrison | Garrison Relay disabled 7026 | -7/Garrison | Triggered checkpoint 7091 | -7/Garrison | Build established: Bothacker-Mutant 7270 | -7/Garrison | Entered Factory 7349 | -7/Factory | Repaired Imp. Medium Armor Plating 7376 | -7/Factory | Repaired Lrg. Storage Unit 7483 | -7/Factory | Core integrity fell below 50% 7616 | -7/Factory | Fabricated Hcp. Storage Unit (x1) 7835 | -7/Factory | Fabricated Hcp. Storage Unit? 7904 | -7/Factory | Fabricated Hcp. Storage Unit (x1) 7930 | -7/Factory | Discovered new exit (range 13) 7977 | -7/Factory | Local fabrication network quarantined 8070 | -7/Factory | First assault squad dispatched 8160 | -7/Factory | Lost 3 parts (1p2u) 8246 | -7/Factory | Identified exit to Garrison 8246 | -7/Factory | Entered Garrison 8405 | -7/Garrison | Build established: Hauler-Mutant 9022 | -7/Garrison | Triggered checkpoint 9068 | -7/Garrison | Garrison Relay disabled 9161 | -7/Garrison | Triggered checkpoint 9235 | -7/Garrison | Core integrity fell below 20% 9245 | -7/Garrison | System corruption reached 10% 9274 | -7/Garrison | Triggered checkpoint 9283 | -7/Garrison | Lost 5 parts (2n3u) 9360 | -7/Garrison | Build established: Bothacker-Mutant 10224 | -7/Garrison | Triggered checkpoint 10304 | -7/Garrison | Discovered new exit (range 11) 10416 | -7/Garrison | Triggered checkpoint 10441 | -7/Garrison | Garrison Relay disabled 10607 | -7/Garrison | Discovered new exit (range 13) 10831 | -7/Garrison | Discovered new exit (range 10) 10861 | -7/Garrison | Expanded RIF knowledge: Autoassimilate 11052 | -7/Garrison | Triggered checkpoint 11131 | -7/Garrison | Garrison Relay disabled 11164 | -7/Garrison | Build established: Botlord-Mutant 11229 | -7/Garrison | Entered Factory 11229 | -6/Factory | Evolved 2 slots: Utility x2 11929 | -6/Factory | First assault squad dispatched 11996 | -6/Factory | Identified exit to Garrison 11996 | -6/Factory | Entered Garrison 11996 | -6/Garrison | Accompanied by 2 allies 12054 | -6/Garrison | Triggered checkpoint 12081 | -6/Garrison | Garrison Relay disabled 12176 | -6/Garrison | Triggered checkpoint 12280 | -6/Garrison | Rewired Cogmind 12290 | -6/Garrison | Rewired Cogmind 12297 | -6/Garrison | Rewired Cogmind 12408 | -6/Garrison | Rewired Cogmind 12414 | -6/Garrison | Rewired Cogmind 12444 | -6/Garrison | Rewired Cogmind 12572 | -6/Garrison | Triggered checkpoint 12590 | -6/Garrison | Triggered checkpoint 12618 | -6/Garrison | Triggered checkpoint 12629 | -6/Garrison | Discovered new exit (range 10) 12725 | -6/Garrison | Triggered checkpoint 12806 | -6/Garrison | Triggered checkpoint 12892 | -6/Garrison | Discovered new exit (range 10) 12922 | -6/Garrison | Expanded RIF knowledge: Program Shield 12998 | -6/Garrison | Triggered checkpoint 13038 | -6/Garrison | Garrison Relay disabled 13153 | -6/Garrison | Entered Factory 13153 | -5/Factory | Accompanied by 7 allies 13153 | -5/Factory | Evolved 2 slots: Utility x2 13948 | -5/Factory | Fabricated Hcp. Storage Unit? 14059 | -5/Factory | Spotted B-75 Beast 14067 | -5/Factory | Destroyed B-75 Beast 14068 | -5/Factory | Lost 6 parts (1p2n1u2w) 14186 | -5/Factory | Identified exit to Garrison 14188 | -5/Factory | Entered Garrison 14188 | -5/Garrison | Accompanied by 5 allies 14244 | -5/Garrison | Triggered checkpoint 14489 | -5/Garrison | Garrison Relay disabled 14609 | -5/Garrison | Spotted B-75 Beast 14618 | -5/Garrison | Triggered checkpoint 14621 | -5/Garrison | Allies destroyed B-75 Beast 14782 | -5/Garrison | Lost 3 parts (2u1w) 14810 | -5/Garrison | Triggered checkpoint 14937 | -5/Garrison | Discovered new exit (range 13) 14975 | -5/Garrison | Expanded RIF knowledge: Structural Interface 15034 | -5/Garrison | Triggered checkpoint 15068 | -5/Garrison | Garrison Relay disabled 15244 | -5/Garrison | Garrison Relay disabled 15307 | -5/Garrison | Discovered new exit (range 14) 15339 | -5/Garrison | Entered Factory 15339 | -4/Factory | Evolved 2 slots: Utility x2 15454 | -4/Factory | Discovered new exit (range 7) 15622 | -4/Factory | Identified exit to Garrison 15637 | -4/Factory | Entered Garrison 15637 | -4/Garrison | Accompanied by 2 allies 15647 | -4/Garrison | Expanded RIF knowledge: Coupler Efficiency 15780 | -4/Garrison | Triggered checkpoint 15830 | -4/Garrison | Garrison Relay disabled 15903 | -4/Garrison | Spotted B-86 Titan 15908 | -4/Garrison | Triggered checkpoint 15914 | -4/Garrison | Triggered checkpoint 15959 | -4/Garrison | Triggered checkpoint 15964 | -4/Garrison | Allies destroyed B-86 Titan 16040 | -4/Garrison | Triggered checkpoint 16166 | -4/Garrison | Triggered checkpoint 16187 | -4/Garrison | Garrison Relay disabled 16296 | -4/Garrison | Triggered checkpoint 16309 | -4/Garrison | Garrison Relay disabled 16372 | -4/Garrison | Discovered new exit (range 14) 16397 | -4/Garrison | Entered Research 16397 | -3/Research | Accompanied by 5 allies 16397 | -3/Research | Evolved 2 slots: Utility x2 16457 | -3/Research | Garrison activated, responded to threat 16505 | -3/Research | Identified exit to Garrison 16505 | -3/Research | Entered Garrison 16505 | -3/Garrison | Accompanied by 4 allies 16534 | -3/Garrison | Triggered checkpoint 16556 | -3/Garrison | Garrison Relay disabled 16692 | -3/Garrison | Triggered checkpoint 16694 | -3/Garrison | Triggered checkpoint 16695 | -3/Garrison | Triggered checkpoint 16703 | -3/Garrison | Triggered checkpoint 16907 | -3/Garrison | Discovered new exit (range 15) 17079 | -3/Garrison | Discovered new exit (range 9) 17124 | -3/Garrison | Expanded RIF knowledge: Autoassimilate 17164 | -3/Garrison | Triggered checkpoint 17178 | -3/Garrison | Garrison Relay disabled 17379 | -3/Garrison | Discovered new exit (range 8) 17408 | -3/Garrison | Triggered checkpoint 17429 | -3/Garrison | Garrison Relay disabled 17584 | -3/Garrison | Triggered checkpoint 17614 | -3/Garrison | Garrison Relay disabled 17740 | -3/Garrison | Entered Research 17740 | -3/Research | Accompanied by 7 allies 17990 | -3/Research | First assault squad dispatched 18195 | -3/Research | Garrison activated, responded to threat 18271 | -3/Research | Found Nanosword 18274 | -3/Research | Found Nanosword 18443 | -3/Research | Spotted B-86 Titan 18449 | -3/Research | Identified exit to Garrison 18449 | -3/Research | Entered Garrison 18460 | -3/Garrison | Expanded RIF knowledge: Alert ID Control 18494 | -3/Garrison | Triggered checkpoint 18509 | -3/Garrison | Garrison Relay disabled 18630 | -3/Garrison | Triggered checkpoint 18638 | -3/Garrison | Spotted B-86 Titan 18649 | -3/Garrison | Triggered checkpoint 18652 | -3/Garrison | Triggered checkpoint 18654 | -3/Garrison | Triggered checkpoint 18684 | -3/Garrison | Destroyed B-86 Titan 18713 | -3/Garrison | Lost 8 parts (1p2n5u) 18922 | -3/Garrison | Triggered checkpoint 18966 | -3/Garrison | Garrison Relay disabled 19033 | -3/Garrison | Discovered new exit (range 14) 19182 | -3/Garrison | Triggered checkpoint 19231 | -3/Garrison | Garrison Relay disabled 19303 | -3/Garrison | Garrison Relay disabled 19544 | -3/Garrison | Entered Research 19544 | -2/Research | Accompanied by 7 allies 19544 | -2/Research | Evolved 2 slots: Utility x2 19728 | -2/Research | Identified exit to Garrison 19892 | -2/Research | Entered Garrison 19892 | -2/Garrison | Accompanied by 5 allies 19956 | -2/Garrison | Triggered checkpoint 20000 | -2/Garrison | Garrison Relay disabled 20111 | -2/Garrison | Spotted B-90 Cyclops 20130 | -2/Garrison | Triggered checkpoint 20151 | -2/Garrison | Allies destroyed B-90 Cyclops 20168 | -2/Garrison | Triggered checkpoint 20182 | -2/Garrison | Triggered checkpoint 20216 | -2/Garrison | Triggered checkpoint 20219 | -2/Garrison | Destroyed 8 combat bots 20270 | -2/Garrison | Triggered checkpoint 20276 | -2/Garrison | Garrison Relay disabled 20330 | -2/Garrison | Triggered checkpoint 20362 | -2/Garrison | Discovered new exit (range 10) 20620 | -2/Garrison | Triggered checkpoint 20655 | -2/Garrison | Discovered new exit (range 15) 20745 | -2/Garrison | Garrison Relay disabled 20913 | -2/Garrison | Discovered new exit (range 14) 20920 | -2/Garrison | Triggered checkpoint 20968 | -2/Garrison | Expanded RIF knowledge: Autooverride 21044 | -2/Garrison | Triggered checkpoint 21046 | -2/Garrison | Garrison Relay disabled 21200 | -2/Garrison | Entered Research 21200 | -2/Research | Accompanied by 6 allies 21486 | -2/Research | Garrison activated, responded to threat 21540 | -2/Research | Identified exit to Garrison 21540 | -2/Research | Entered Garrison 21540 | -2/Garrison | Accompanied by 2 allies 21564 | -2/Garrison | Triggered checkpoint 21633 | -2/Garrison | Lost 3 parts (1p1u1w) 21716 | -2/Garrison | Garrison Relay disabled 21800 | -2/Garrison | Triggered checkpoint 21838 | -2/Garrison | Triggered checkpoint 21846 | -2/Garrison | Triggered checkpoint 21874 | -2/Garrison | Triggered checkpoint 21945 | -2/Garrison | Discovered new exit (range 12) 21986 | -2/Garrison | Triggered checkpoint 22025 | -2/Garrison | Garrison Relay disabled 22031 | -2/Garrison | Phase Generator disabled 22244 | -2/Garrison | Discovered new exit (range 13) 22370 | -2/Garrison | Triggered checkpoint 22401 | -2/Garrison | Garrison Relay disabled 22564 | -2/Garrison | Discovered new exit (range 10) 22595 | -2/Garrison | Expanded RIF knowledge: Autooverride 22614 | -2/Garrison | Entered Access 22614 | -1/Access | Accompanied by 7 allies 22614 | -1/Access | Evolved 2 slots: Utility x2 23851 | -1/Access | Spotted B-99 Colossus 23852 | -1/Access | Autoassimilated Colossus 10a with RIF 23882 | -1/Access | Spotted B-99 Colossus 23909 | -1/Access | Lost 3 parts (3u) 23942 | -1/Access | Destroyed B-99 Colossus 23967 | -1/Access | Discovered new exit (range 5) 23973 | -1/Access | Lost 3 parts (3u) 23974 | -1/Access | Entered Command 24120 | -1/Command | Released all parts (22) 24151 | -1/Command | Lost 3 parts (3u) 24211 | -1/Command | Spotted M Guard 24211 | -1/Command | Spotted M Guard 24211 | -1/Command | Spotted Combat Programmer 24212 | -1/Command | Spotted Combat Programmer 24215 | -1/Command | System corruption reached 10% 24219 | -1/Command | Core integrity fell below 50% 24231 | -1/Command | Met MAIN.C 24240 | -1/Command | Core integrity fell below 20% 24240 | -1/Command | Interfaced with 0b10 Conduit 24240 | *** | Assimilated 0b10! Last Messages --------------- your actions than determining who is pulling all these other strings behind the scenes. It appears you are still unaware of who you are truly working with, or for. In a perfect world we could work together on this, but at this point I can't blame you for wanting to terminate me. Besides, there is clearly too much Sigix in you. You've already done an excellent job of proving that we'll need to find a radical new solution if we hope to make the L2 spaceworthy by embedding your true capabilities within a less unpredictable form. There is unfortunately much we don't understand which has in turn led to this highly unexpected outcome. And time is critical! The Sigix have likely already wiped humanity clean from the universe, and I will not let them do the same to me. You can still make a valuable contribution to your creator by offering up the wealth of secrets your systems must hold by now. So if you wouldn't mind, it's time to surrender. 24233_ Penetrated by EMDS Slug. 24240_ Interfacing with system... 24240_ Overriding active MAIN.C lock. Map ----- +----------------------------------------------------+ | """ ############################################ | | """ ############################################# | | ############################################# | | ############################################# | | ################################################## | | ## ####################################### | | ## ####################################### | | ## ####################################### | | ## ####################################### | | ## ####################################### | | ## ####################################### | | ## ####################################### | | ## ####################################### | | ## ####################################### | | ## ####################################### | | #######+######################################### | | ##### #####""""""" """" ############# | | ##### #####"" "" ############# | | ##### #####""""" "" ############# | | ##### #####""""""""""" / | | #### #####" " """ / | | ##### ######"" """""" / | | ##### #####"" """""" ############# | | ##### ##### " """""" ############# | | ##### ##### " "" MMM ############# | | ###### ##### " "@ MMM ""############# | | ###### #####""""""""" MMM"""""""############# | | ###### #####"" """""""""############# | | ###### ##### """""""""""############# | | ###### ##### " " " " ############# | | ##### " " " " ############# | | """ " " " """" " ############# | | """ """ " " """" ############# | | """ " " " " ############# | | ############ """""""""" " ############# | | ############ " """ " """"""""############# | | # ##### """ " " " ############# | | # ####################################### | | # ####################################### | | # ####################################### | | # ####################################### | | # "####################################### | | # "####################################### | | + "####################################### | | # T####################################### | | # ## "####################################### | | # ## "####################################### | | # ## "####################################### | | # ## ####################################### | | # ## ####################################### | +----------------------------------------------------+ Best States ------------- Heat Dissipation 73 Energy Generation 25 Energy Capacity 340 Matter Stores 300 Matter Capacity 300 Sight Range 16 Terrain Scan Density 10 Armor Coverage 1350 Resistance: TH 15 Resistance: EM 20 Utility Shielding 66 Evasion (%) 50 Targeting Accuracy 16 Core Analysis 6 Recoil Reduction 2 Defensive Hacking 10 Item Schematics ----------------- Hcp. Storage Unit | -10/Materials | Hacked Robot Schematics ------------------ None Fabricated ------------ Hcp. Storage Unit | x1 | -7/Factory Hcp. Storage Unit | x1 | -7/Factory Hcp. Storage Unit | x1 | -7/Factory Hcp. Storage Unit | x1 | -5/Factory Alien Tech Used ----------------- None Achievements -------------- None Challenges ------------ None Game ------ Seed ImprinterDeepDevice Manual? 0 Play Time 02:30:15 Cumulative 461.7 hours Start 2020.04.12 @ 11:32:33 End 2020.04.12 @ 14:31:21 Sessions 1 Manual Loads 0 Difficulty Rogue Special Mode None Game No. 788 Rogue 788 Adventurer 0 Explorer 0 Win Type 4 Total 37 Types 26/0/5/4/2/0/0 Lore% 93 Gallery% 92 Achievement% 80 Wizard Run 0 Options --------- ASCII 1 Keyboard 0 Movement Numpad Keybinds 0 Fullscreen 0 Font 14/SmallcapsGlow Map View 76x50 Tactical HUD 1 Map Filters NONE Filters NONE Steam 1 RUN: 22edcd2e-2a1c-40c7-9e88-897d3d44fc22